Cogmind - Beta 17.1 @@@ ROGUE MODE // 2026.09.12 @ 17:15:23 Player: Somberlain Result: Destroyed by G-67 Veteran with Field Laser Performance ------------- Evolutions (6) 3000 Regions Visited (15) 3000 Robots Destroyed (127) 635 Value Destroyed (8980) 8980 Prototype IDs (28) 560 Alien Tech Used (0) 0 Bonus (7193) 7193 TOTAL SCORE: 23368 Bonus ------- High Alert Combat Kills 790 Follower Combat Kills 1684 Entered Garrisons 1000 Used RIF Installer 3500 Aligned with FarCom 300 Friendly Fire -81 Cogmind --------- Core Integrity 0/1150 Matter 202/300 Energy 99/100 System Corruption 21% Temperature Cool (12) Movement Core (50) Location -4/Factory Parts ------- > --- POWER (2) -------- (None) > --- PROPULSION (4) --- (None) > --- UTILITY (11) ----- Advanced Melee Analysis Suite Advanced Melee Analysis Suite Advanced Melee Analysis Suite Advanced Melee Analysis Suite Graphene Brace Relay Coupler [Duelist] (31) Relay Coupler [Specialist] (24) > --- WEAPON (2) ------- (None) > --- INVENTORY (5) ---- System Shield Relay Coupler [Behemoth] (10) Relay Coupler [Behemoth] (9) Improved Arc Projector Improved Datajack Peak State ------------ > --- POWER ------------ Neutrino Core Particle Reactor > --- PROPULSION ------- Flexi-carbon Leg Flexi-carbon Leg Flexi-carbon Leg Flexi-carbon Leg > --- UTILITY ---------- Large Storage Unit Advanced Melee Analysis Suite Advanced Melee Analysis Suite Advanced Melee Analysis Suite Advanced Melee Analysis Suite Improved Target Analyzer Improved Target Analyzer Core Analyzer Relay Coupler [Demolisher] > --- WEAPON ----------- Advanced Remote Datajack Lance > --- INVENTORY -------- Carbon-fiber Leg Relay Coupler [Cutter] Relay Coupler [Duelist] Relay Coupler [Sentry] Relay Coupler [Specialist] Relay Coupler [Behemoth] Relay Coupler [Behemoth] Advanced Component Analysis Suite Advanced Recalibrator Quantum Rifle Linear Accelerator Linear Accelerator Heavy Linear Accelerator Advanced Remote Datajack [Rating: 97] Favorites ----------- Power Neutrino Core Engine Improved Deuterium Engine Power Core Neutrino Core Reactor Particle Reactor Propulsion Gravmag System Treads Medium Treads Leg Flexi-carbon Leg Hover Unit Gravmag System Flight Unit Flight Unit Utility Advanced Melee Analysis Suite Device Improved Cooling System Storage Large Storage Unit Processor Advanced Melee Analysis Suite Hackware System Shield Protection Medium Armor Plating Weapon Lance Energy Gun Gatling Laser Energy Cannon Heavy Proton Cannon Ballistic Gun Coil Gun Ballistic Cannon Heavy Linear Accelerator Special Weapon Remote Datajack Impact Weapon Great Maul Slashing Weapon Scythe Piercing Weapon Lance Special Melee Weapon Improved Datajack Build | -11 -10 -10 -10 -9 -8 -8 -8 -8 -7 -7 -6 -6 -5 -5 -4 ------- Run | Yrd Mat Min Exi Min Mat Gar Mat Gar Fac Gar Fac Gar Fac Gar Fac Slots Evolved 12 | . . . . . 4 . . . 2 . 2 . 2 . 2 Power 1 | . . . . . . . . . . . . . 1 . . Propulsion 2 | . . . . . 2 . . . . . . . . . . Utility 9 | . . . . . 2 . . . 2 . 2 . 1 . 2 Weapon . | . . . . . . . . . . . . . . . . Parts Attached 183 | 6 8 6 . 5 14 6 5 19 10 13 9 16 22 30 14 Power 25 | 1 1 . . 1 . 3 1 2 1 . 1 3 5 5 1 Engine 8 | 1 . . . 1 . 2 . . . . . 1 1 2 . Core 15 | . 1 . . . . 1 1 2 1 . 1 2 4 2 . Reactor 2 | . . . . . . . . . . . . . . 1 1 Propulsion 51 | 2 2 2 . 1 6 . 2 5 4 5 5 6 2 8 1 Treads 1 | . . . . 1 . . . . . . . . . . . Leg 21 | 2 2 . . . . . . . . . . 6 2 8 1 Wheel . | . . . . . . . . . . . . . . . . Hover 20 | . . . . . 5 . . 1 4 5 5 . . . . Flight 9 | . . 2 . . 1 . 2 4 . . . . . . . Utility 74 | 1 3 2 . 1 5 3 1 10 4 6 3 5 11 14 5 Device 11 | . 1 1 . 1 . 1 . . 2 . . . 3 1 1 Storage 3 | 1 . . . . 1 . . . . . 1 . . . . Processor 18 | . . 1 . . 2 2 1 . 2 1 2 . 3 4 . Hackware 37 | . . . . . 1 . . 9 . 5 . 5 5 8 4 Protection 5 | . 2 . . . 1 . . 1 . . . . . 1 . Artifact . | . . . . . . . . . . . . . . . . Weapon 33 | 2 2 2 . 2 3 . 1 2 1 2 . 2 4 3 7 Energy Gun 10 | 2 1 1 . 2 1 . . . . . . . . . 3 Energy Cannon 2 | . . . . . . . . . . . . . 2 . . Ballistic Gun 1 | . . . . . . . . . . . . . . . 1 Ballistic Cannon 5 | . . . . . . . . . . 1 . 2 . 1 1 Launcher . | . . . . . . . . . . . . . . . . Special Weapon 7 | . 1 1 . . . . . 2 . 1 . . . 1 1 Impact Weapon 2 | . . . . . 2 . . . . . . . . . . Slashing Weapon 3 | . . . . . . . 1 . 1 . . . . 1 . Piercing Weapon 2 | . . . . . . . . . . . . . 2 . . Special Melee Weapon 1 | . . . . . . . . . . . . . . . 1 Unidentified Prototypes 3 | . . . . . 1 . . . 1 . . . 1 . . Corrupted Parts 3 | . . . . . . . . . . . . . . . 3 System Corruption 17 | . . . . . . . . . . . . . . . 17 Parts Lost 55 | . . . . . . 4 5 3 . 2 . 3 4 13 21 Power 10 | . . . . . . 1 1 . . . . 1 1 3 3 Propulsion 23 | . . . . . . 1 4 3 . . . 2 3 5 5 Utility 11 | . . . . . . 1 . . . . . . . 3 7 Weapon 11 | . . . . . . 1 . . . 2 . . . 2 6 Highest Loss Streak 21 | . . . . . . 3 4 2 . 1 . 1 1 7 21 To Critical Strikes . | . . . . . . . . . . . . . . . . Average Backups 8 | . 4 7 2 2 4 7 7 4 5 4 4 7 13 13 10 Power . | . . . . . . . . . . . . . . . . Propulsion . | . . 1 1 1 . . . . . . . . 2 . . Utility 5 | . 1 2 . . 2 5 6 3 4 3 3 5 9 9 7 Weapon 1 | . 1 2 1 1 1 . . . . . . . . 2 3 Tool/Special . | . . . . . . . . . . . . . . . . Unused Backups 33 | . . 2 2 . 5 3 . 1 . 3 . 2 1 6 8 Power 1 | . . 1 . . . . . . . . . . . . . Propulsion 6 | . . . 1 . 4 . . . . . . 1 . . . Utility 23 | . . . . . 1 3 . 1 . 3 . 1 . 6 8 Weapon 2 | . . 1 . . . . . . . . . . 1 . . Tool/Special 1 | . . . 1 . . . . . . . . . . . . Average Slot Usage (%) 91 | . 97 98 95 85 80 97 95 78 95 91 87 89 92 94 92 Engine 2 | . 6 . . 13 9 8 5 . . . . . 3 1 . Core 5 | . 7 14 14 . . . 2 4 7 7 6 5 6 5 4 Leg 10 | . 28 26 . . . . . . . . . 13 21 20 18 Hover 9 | . . . . . 16 35 31 1 13 30 26 10 . . . Flight 2 | . . 1 28 . 4 . 1 22 16 . . . . . . Device 3 | . 11 12 9 14 9 2 . . 4 . . . 3 . . Storage 4 | . 5 12 . . 8 7 9 1 . . 2 3 5 5 4 Processor 23 | . . . 14 14 9 15 18 17 14 26 27 26 24 38 25 Hackware 12 | . . . . . 3 9 9 12 23 19 17 20 16 5 23 Energy Gun 3 | . 25 14 14 27 14 1 . . . . . . . . . Ballistic Cannon 1 | . . . . . . . . . . . 2 5 2 1 . Special Weapon 2 | . 2 14 14 . . . . 7 5 2 3 . . 2 3 Impact Weapon 1 | . . . . . 1 15 13 . . . . . . . . Slashing Weapon 1 | . . . . . . . 3 9 7 4 . . . . . Piercing Weapon 1 | . . . . . . . . . . . . . 2 5 4 Peak Build Rating 97 | 6 12 12 14 24 56 44 42 33 55 61 67 77 90 97 97 Average Rating 59 | 4 9 11 12 23 47 39 38 28 44 56 57 67 82 85 89 On Entrance 38 | . 6 10 10 13 24 40 41 23 31 55 55 56 77 84 92 Avg Prop Armor Cover (%) 7 | . . . . . . . . 9 . . . 7 7 6 . Naked Turns . | . . . . . . . . . . . . . . . . Heaviest Build 67 | 12 21 15 9 20 33 24 21 11 14 28 47 57 66 67 67 Greatest Support 80 | 20 20 20 8 28 50 35 35 17 36 45 45 69 74 80 80 Greatest Overweight (x) 14 | . 1 . 1 1 3 . . 1 . . 1 2 2 1 14 Average Overweight (x) . | . . . . . . . . . . . . . . . . Largest Inventory Capacity 15 | 8 8 8 5 5 8 8 8 8 5 5 15 15 15 15 15 Average Capacity 10 | 7 6 7 5 5 7 7 8 5 5 5 8 10 15 15 14 Most Carried 15 | . 8 8 5 5 8 8 8 8 5 5 6 15 15 15 14 Average Carried 8 | . 4 7 4 5 3 6 7 4 4 4 5 7 14 14 10 Final Capacity 15 | 8 8 5 5 5 8 8 8 5 5 5 15 15 15 15 5 Final Carried 15 | . 8 5 5 5 8 8 7 5 5 5 6 15 15 15 5 Class Distribution -------------------- 37% | Botlord-Mutant 25% | Mutant 17% | Bothacker-Mutant 4% | Bothacker-Gladiator 3% | Botlord-Gladiator 3% | Bothacker-Sprinter Dominant Class ---------------- Mutant | -10/Materials Mutant | -10/Mines Scavenger-Mutant | -10/Exiles Mutant | -9/Mines Mutant | -8/Materials Mutant | -8/Garrison Mutant | -8/Materials Scavenger-Sprinter | -8/Garrison Bothacker-Sprinter | -7/Factory Bothacker-Mutant | -7/Garrison Bothacker-Mutant | -6/Factory Bothacker-Mutant | -6/Garrison Botlord-Mutant | -5/Factory Botlord-Mutant | -5/Garrison Botlord-Mutant | -4/Factory Resources | -11 -10 -10 -10 -9 -8 -8 -8 -8 -7 -7 -6 -6 -5 -5 -4 ----------- Run | Yrd Mat Min Exi Min Mat Gar Mat Gar Fac Gar Fac Gar Fac Gar Fac Matter Collected 4455 | 205 125 120 . 60 150 115 26 306 . 648 127 829 678 926 140 Remotely . | . . . . . . . . . . . . . . . . Salvage Created 5203 | . 389 14 . 240 773 577 63 397 71 728 103 77 542 1008 221 Parts 284 | . 15 . . 13 36 23 7 36 3 50 5 9 34 40 13 Haulers Intercepted 6 | . 1 . . . 2 . 1 . . . 1 . 1 . . Recyclers Shooed . | . . . . . . . . . . . . . . . . Parts Field Recycled . | . . . . . . . . . . . . . . . . Retrieved Matter . | . . . . . . . . . . . . . . . . Parts Self-Destructed . | . . . . . . . . . . . . . . . . Prevented . | . . . . . . . . . . . . . . . . Parts Restored . | . . . . . . . . . . . . . . . . Kills | -11 -10 -10 -10 -9 -8 -8 -8 -8 -7 -7 -6 -6 -5 -5 -4 ------- Run | Yrd Mat Min Exi Min Mat Gar Mat Gar Fac Gar Fac Gar Fac Gar Fac Combat Hostiles Destroyed 102 | . 7 3 . 5 13 13 . 8 1 14 1 4 12 18 3 Melee 39 | . . . . . . 4 . 8 1 10 . . 2 14 . Guns 30 | . 7 . . 5 12 6 . . . . . . . . . Cannons 24 | . . 3 . . . . . . . 4 1 4 7 4 1 AOE 5 | . . . . . . . . . . . . . 3 . 2 Classes Destroyed 12 | . 4 1 . . 3 . . 1 . . . 1 1 . 1 Worker 5 | . 1 . . . 1 . 1 . . . . . 2 . . Builder 2 | . . . . . 1 . . . . . . . 1 . . Hauler 6 | . 1 . . . 2 . 1 . . . 1 . 1 . . Operator 2 | . . . . . . . . . . . . . 1 . 1 Watcher 8 | . 2 . . . 1 3 . . . . . . 2 . . Swarmer 16 | . . 3 . . . 3 . 1 . 3 . 1 4 1 . Cutter 1 | . . . . . . . . . . . . 1 . . . Grunt 42 | . 7 . . 5 7 9 . . . 4 . . 1 9 . Brawler 1 | . . . . . . . . . . . . . . . 1 Sentry 21 | . . . . . 5 1 . 2 1 2 . 2 3 5 . Hunter 8 | . . . . . 1 . . 3 . 1 . . . 3 . Programmer 15 | . . . . . . . . 3 . 4 1 . 4 . 3 Best Kill Streak 8 | . 7 3 . 3 4 6 1 2 1 4 1 1 8 4 3 Combat Bots Only 6 | . 3 3 . 3 4 6 . 2 1 4 1 1 6 4 3 Max Kills in Single Turn 6 | . 1 1 . 1 2 1 1 1 1 1 1 1 6 1 2 Gunslinging . | . . . . . . . . . . . . . . . . Exploded 3 | . . . . . . . . . . . . . 3 . 2 Melee 1 | . . . . . . 1 . 1 1 1 . . 1 1 . Uniques/NPCs Destroyed . | . . . . . . . . . . . . . . . . Combat | -11 -10 -10 -10 -9 -8 -8 -8 -8 -7 -7 -6 -6 -5 -5 -4 -------- Run | Yrd Mat Min Exi Min Mat Gar Mat Gar Fac Gar Fac Gar Fac Gar Fac Hostile Shots Fired 909 | . 53 23 . 6 34 65 24 67 15 93 2 53 73 147 254 Missed 297 | . 9 7 . 1 11 18 11 27 7 41 1 27 21 35 81 Hits 612 | . 44 16 . 5 23 47 13 40 8 52 1 26 52 112 173 Melee 3 | . . . . . . . . . . . . 3 . . . Projectile 609 | . 44 16 . 5 23 47 13 40 8 52 1 23 52 112 173 AOE 4 | . . . . . . . . . . 1 . 2 . 1 . Critical Strikes 20 | . . . . . . 3 . 1 . 3 . . 3 4 6 Actively Blocked 5 | . . . . . . . . . . . . . . . 5 Damage Taken 10384 | . 542 147 . 85 450 677 198 506 55 732 16 499 1237 2105 3135 Core 2646 | . 49 20 . . 81 115 33 234 6 176 . 117 207 454 1154 Absorbed by Shields 87 | . . . . . . . . 29 . 23 . . . 35 . Regen/Repaired (Parts) 358 | . 99 . . . 52 . . . . . . . 207 . . Core Remaining (%) 63 | 100 . . . 72 . . . 15 . 74 . 86 . 33 . Volleys Fired 291 | . 46 7 . 7 39 14 . 20 . 19 15 38 42 27 17 Largest 2 | . 2 2 . 2 2 2 . 1 . 1 1 1 2 1 2 Hottest 162 | . 105 120 . 135 149 149 . 5 . 65 65 70 162 70 108 Shots Fired 407 | . 83 14 . 14 78 24 . 20 . 19 15 39 48 30 23 Gun 209 | . 80 7 . 14 78 24 . . . . . . . . 6 Cannon 120 | . . . . . . . . . . 13 8 28 36 23 12 Launcher . | . . . . . . . . . . . . . . . . Special 78 | . 3 7 . . . . . 20 . 6 7 11 12 7 5 Kinetic 107 | . . . . . . . . . . 13 8 28 20 23 15 Thermal 194 | . 83 14 . 7 63 24 . . . . . . . . 3 Explosive . | . . . . . . . . . . . . . . . . Electromagnetic 38 | . . . . 7 15 . . . . . . . 16 . . Robot Hit Streak 15 | . 6 5 . 10 12 15 . 6 . 8 8 6 9 8 3 Robot Miss Streak 7 | . 2 1 . 2 4 2 . 7 . 2 2 4 3 2 4 Penetration Max . | . . . . . . . . . . . . . . . . Secondary Targets 4 | . 1 . . 1 2 . . . . . . . . . . Max Gunslinging Chain 1 | . 1 . . 1 1 . . . . . . . . . . Shots Hit Robots 379 | . 51 10 . 13 62 35 2 31 2 37 10 18 37 54 17 Core Hits 175 | . 20 4 . 9 37 19 2 9 2 17 1 5 17 25 8 Critical Kills 1 | . . . . . . . 1 . . . . . . . . Critical Parts Destroyed 6 | . . . . . 1 5 . . . . . . . . . Critical Strikes 32 | . 2 . . 1 2 6 1 1 . 3 1 . 6 8 1 Burn 4 | . 2 . . . 1 1 . . . . . . . . . Blast 10 | . . . . . . . . . . . 1 . 4 4 1 Corrupt 1 | . . . . 1 . . . . . . . . . . . Smash 7 | . . . . . 1 5 1 . . . . . . . . Sever 4 | . . . . . . . . 1 . 3 . . . . . Impale 6 | . . . . . . . . . . . . . 2 4 . Melee Attacks 249 | . . . . . 1 44 17 56 7 37 . . 10 46 31 Impact 57 | . . . . . 1 44 10 2 . . . . . . . Slashing 105 | . . . . . . . 7 54 7 37 . . . . . Piercing 87 | . . . . . . . . . . . . . 10 46 31 Sneak Attacks 9 | . . . . . 1 2 2 1 . 1 . . . . 2 Combat Hostiles 1 | . . . . . . . . . . 1 . . . . . Follow-up Attacks 4 | . . . . . . 3 . 1 . . . . . . . Damage Inflicted 13717 | . 638 107 . 260 1542 1251 142 725 73 2360 314 720 2113 2705 767 Guns 2837 | . 638 31 . 250 1369 431 . . . . . . . . 118 Cannons 4302 | . . . . . . . . . . 562 314 720 1488 1081 137 Explosions 620 | . . . . . 65 . . . . . . . 391 . 164 Melee 5872 | . . . . . 108 820 142 725 73 1798 . . 234 1624 348 Ramming 10 | . . . . 10 . . . . . . . . . . . Kinetic 4005 | . . . . . . . . . . 562 314 720 1157 1081 171 Thermal 2841 | . 638 107 . 111 1231 431 . . . . . . 239 . 84 Explosive 285 | . . . . . . . . . . . . . 152 . 133 Electromagnetic 704 | . . . . 139 203 . . . . . . . 331 . 31 Impact 1050 | . . . . . 108 820 78 44 . . . . . . . Slashing 2616 | . . . . . . . 64 681 73 1798 . . . . . Piercing 2206 | . . . . . . . . . . . . . 234 1624 348 Highest Corruption 21 | . . . . . . . . 3 . 1 1 1 7 8 21 Average Corruption 4 | . . . . . . . . 2 . 1 1 1 4 7 14 Corruption Purged . | . . . . . . . . . . . . . . . . Corruption Blocked . | . . . . . . . . . . . . . . . . Effects 129 | . . . . . . . . 10 . 1 5 9 24 74 6 Message Errors 33 | . . . . . . . . 3 . 1 1 3 4 20 1 Matter Fused 33 | . . . . . . . . 4 . . 1 3 5 18 2 Heat Flow Errors 15 | . . . . . . . . 1 . . 1 . 4 9 . Energy Discharges 15 | . . . . . . . . 2 . . . 1 2 8 2 Parts Rejected 2 | . . . . . . . . . . . . . . 2 . Parts Fused 4 | . . . . . . . . . . . . 1 2 1 . Data Loss (minor) 16 | . . . . . . . . . . . 2 . 5 8 1 Data Loss (major) 4 | . . . . . . . . . . . . . 1 3 . Misfires 4 | . . . . . . . . . . . . 1 . 3 . Alerts 3 | . . . . . . . . . . . . . 1 2 . Overload Shots . | . . . . . . . . . . . . . . . . Overflow Damage 1265 | . . . . . 108 344 . 23 . 276 75 79 279 76 5 Projectiles 516 | . . . . . . . . . . 78 75 79 238 46 . Explosions 15 | . . . . . . . . . . . . . 10 . 5 Melee 734 | . . . . . 108 344 . 23 . 198 . . 31 30 . Knockbacks 17 | . . . . . . 1 . . . 3 . 1 2 8 2 Impact 1 | . . . . . . 1 . . . . . . . . . Kinetic 15 | . . . . . . . . . . 2 . 1 2 8 2 Secondary 1 | . . . . . . . . . . 1 . . . . . Self-Inflicted Damage 105 | . . . . . 37 . . . . . . . . . 68 Shots 2 | . . . . . 1 . . . . . . . . . 1 Rammed 3 | . . . . 3 . . . . . . . . . . . Targets Rammed 3 | . . . . 3 . . . . . . . . . . . Kicked . | . . . . . . . . . . . . . . . . Crushed . | . . . . . . . . . . . . . . . . Highest Temperature 300 | . 300 128 . 9 180 115 . 166 . 60 180 55 267 258 26 Average Temperature 52 | . 79 65 . 7 47 40 . 86 . 21 43 15 66 69 13 Received Heat Transfer 1795 | . 300 . . 39 144 360 81 98 12 195 . 12 135 407 12 Effects 2 | . 2 . . . . . . . . . . . . . . Interference 2 | . 2 . . . . . . . . . . . . . . Siege Activations . | . . . . . . . . . . . . . . . . Martial Activations . | . . . . . . . . . . . . . . . . Shielding Activations . | . . . . . . . . . . . . . . . . Robots Disrupted . | . . . . . . . . . . . . . . . . Combat Hostiles . | . . . . . . . . . . . . . . . . Robots Corrupted 5 | . . . . . . 5 . . . . . . . . . Combat Hostiles 3 | . . . . . . 3 . . . . . . . . . Parts Fried 5 | . . . . . 1 3 . . . . . . 1 . . Impact Corruptions 12 | . . . . . 1 11 . . . . . . . . . Robots Melted 1 | . . . . . 1 . . . . . . . . . . Combat Hostiles 1 | . . . . . 1 . . . . . . . . . . Parts Melted 21 | . 5 . . . 10 3 . 1 . . . . 1 1 . Heat Transferred 6417 | . 1627 635 . 250 2690 904 . . . . . . 200 . 111 Parts Sabotaged . | . . . . . . . . . . . . . . . . Parts Stolen . | . . . . . . . . . . . . . . . . Parts Stripped . | . . . . . . . . . . . . . . . . Power Chain Reactions 1 | . . . . . 1 . . . . . . . . . . Alert | -11 -10 -10 -10 -9 -8 -8 -8 -8 -7 -7 -6 -6 -5 -5 -4 ------- Run | Yrd Mat Min Exi Min Mat Gar Mat Gar Fac Gar Fac Gar Fac Gar Fac Maximum Alert Level 5 | . . . . . 1 3 2 2 1 3 2 3 2 5 3 Low Security (%) 18 | 100 100 100 . 100 32 . . 12 50 17 . . . . . Level 1 23 | . . . . . 67 18 84 79 49 16 58 17 29 . 18 Level 2 30 | . . . . . . 41 15 8 . 33 41 21 70 34 48 Level 3 20 | . . . . . . 39 . . . 31 . 61 . 31 33 Level 4 5 | . . . . . . . . . . . . . . 29 . Level 5 1 | . . . . . . . . . . . . . . 5 . High Security . | . . . . . . . . . . . . . . . . Max Security . | . . . . . . . . . . . . . . . . Peak Influence 1666 | . 105 60 . 100 375 868 423 458 248 951 499 1001 677 1666 874 Initial 874 | . . 14 . . 29 209 423 152 240 66 499 200 504 442 874 Average 513 | . 45 10 . 14 256 607 328 283 184 543 390 666 502 948 617 Influence Increases 7333 | . 230 70 . 176 543 759 99 476 53 1065 105 1031 845 1554 327 Destroy 0b10 Robot/C 2840 | . 140 60 . 120 300 300 . 220 20 400 20 400 320 480 60 Destroy 0b10 Robot/NC 150 | . 20 . . . 25 15 10 . . 20 5 . 45 5 5 Destroy Leader 422 | . 36 10 . 20 86 20 2 20 10 30 12 40 86 30 20 Allied During Kill 520 | . . . . 21 106 18 . 12 . 70 . 175 39 79 . Successful Hack 104 | . 3 . . . 4 . . 14 18 14 18 14 5 14 . Disable Machine 240 | . 15 . . 15 15 . . . . . 15 15 60 . 105 Anti-Garrison Action 1800 | . . . . . . 150 . 150 . 350 . 300 150 700 . Destroy Structure 447 | . 1 . . . 7 76 12 15 5 16 5 12 80 96 122 Partial Spotted 75 | . . . . . . . . 45 . . 30 . . . . Lose Combat Pursuer 735 | . 15 . . . . 180 75 . . 165 . 75 60 150 15 Influence Decreases 6994 | . 192 108 . 100 297 213 733 252 416 209 770 356 1174 520 1654 Entered New Map 2935 | . . 24 . . 47 113 445 82 218 29 452 86 457 190 792 Time Decay 2359 | . 192 84 . 100 230 . 238 . 198 . 318 . 577 . 422 Lost Part 550 | . . . . . . 40 50 30 . 20 . 30 40 130 210 Lost Ally 1000 | . . . . . 20 60 . 140 . 160 . 240 100 200 80 Purge Threat 150 | . . . . . . . . . . . . . . . 150 Squads Dispatched 17 | . 2 . . 1 1 . . . . . 1 . 8 . 4 Investigation 4 | . 2 . . 1 1 . . . . . . . . . . Extermination 4 | . . . . . . . . . . . 1 . 2 . 1 Reinforcement 4 | . . . . . . . . . . . . . 2 . 2 Assault 4 | . . . . . . . . . . . . . 3 . 1 Garrison 1 | . . . . . . . . . . . . . 1 . . Intercept . | . . . . . . . . . . . . . . . . Searches Triggered . | . . . . . . . . . . . . . . . . Construction Impeded . | . . . . . . . . . . . . . . . . Haulers Reinforced . | . . . . . . . . . . . . . . . . Active Scanning Responses . | . . . . . . . . . . . . . . . . Cargo Convoy Interrupts . | . . . . . . . . . . . . . . . . Alert ID Control Effect 17 | . . . . . . . . . . 5 . 7 2 3 . Stealth | -11 -10 -10 -10 -9 -8 -8 -8 -8 -7 -7 -6 -6 -5 -5 -4 --------- Run | Yrd Mat Min Exi Min Mat Gar Mat Gar Fac Gar Fac Gar Fac Gar Fac Distress Signals 7 | . 1 . . . 4 . 2 . . . . . . . . Communications Jammed . | . . . . . . . . . . . . . . . . Distress Signals . | . . . . . . . . . . . . . . . . Times Spotted 244 | . 10 4 . 6 20 23 8 19 2 32 1 30 34 39 16 Peak Tracking Total 8 | . 3 3 . 3 6 8 5 3 1 4 1 7 5 6 8 Tactical Retreats 31 | . 1 1 . . . 6 3 . . 8 . 2 1 8 1 Traps | -11 -10 -10 -10 -9 -8 -8 -8 -8 -7 -7 -6 -6 -5 -5 -4 ------- Run | Yrd Mat Min Exi Min Mat Gar Mat Gar Fac Gar Fac Gar Fac Gar Fac Traps Triggered 27 | . 1 . . . . 4 . 4 3 8 . 6 1 . . Indirectly . | . . . . . . . . . . . . . . . . Trap Hack Attempts . | . . . . . . . . . . . . . . . . Triggered . | . . . . . . . . . . . . . . . . Disarmed . | . . . . . . . . . . . . . . . . Reprogrammed . | . . . . . . . . . . . . . . . . Reused . | . . . . . . . . . . . . . . . . Traps Extracted . | . . . . . . . . . . . . . . . . Installed . | . . . . . . . . . . . . . . . . Triggered . | . . . . . . . . . . . . . . . . Machines | -11 -10 -10 -10 -9 -8 -8 -8 -8 -7 -7 -6 -6 -5 -5 -4 ---------- Run | Yrd Mat Min Exi Min Mat Gar Mat Gar Fac Gar Fac Gar Fac Gar Fac Machines Disabled 36 | . 1 . . 1 1 3 . 3 . 4 1 5 5 5 7 Max in Single Turn 3 | . 1 . . . 1 1 . 1 . 1 1 1 3 1 3 Garrison Access 1 | . . . . . . . . . . . . . 1 . . Garrison Relay 18 | . . . . . . 3 . 3 . 4 . 4 . 4 . Machines Repaired . | . . . . . . . . . . . . . . . . Machines Dismantled . | . . . . . . . . . . . . . . . . Machines Sabotaged . | . . . . . . . . . . . . . . . . Overloaded Fab Kills . | . . . . . . . . . . . . . . . . Hacking | -11 -10 -10 -10 -9 -8 -8 -8 -8 -7 -7 -6 -6 -5 -5 -4 --------- Run | Yrd Mat Min Exi Min Mat Gar Mat Gar Fac Gar Fac Gar Fac Gar Fac Machines Accessed 39 | . 3 . 1 2 5 2 2 1 2 4 5 2 7 1 2 Terminals 24 | . 2 . . 1 2 2 1 1 1 4 2 2 4 1 1 Fabricators 3 | . . . . . . . . . . . 2 . . . 1 Repair Stations 3 | . 1 . . . 1 . . . . . . . 1 . . Recycling Units . | . . . . . . . . . . . . . . . . Scanalyzers 2 | . . . . . 1 . . . . . . . 1 . . Garrison Access 5 | . . . . . 1 . 1 . 1 . 1 . 1 . . Total Hacks 89 | . 7 . 1 4 9 4 5 1 3 10 9 4 27 3 2 Successful 37 | . 2 . 1 2 4 1 1 1 2 2 5 2 13 1 . Failed 51 | . 5 . . 2 5 3 4 . 1 8 4 2 13 2 2 Catastrophic 9 | . 1 . . . . . 1 . . . 1 1 3 1 1 Database Lockouts 1 | . . . . . . . . . . . . . 1 . . Manual 24 | . 2 . 1 . 1 1 4 . 1 3 4 1 5 . 1 Terminals 52 | . 4 . . 3 3 4 4 1 2 10 6 4 7 3 1 Fabricators 3 | . . . . . . . . . . . 2 . . . 1 Repair Stations 19 | . 3 . . . 4 . . . . . . . 12 . . Recycling Units . | . . . . . . . . . . . . . . . . Scanalyzers 8 | . . . . . 1 . . . . . . . 7 . . Garrison Access 5 | . . . . . 1 . 1 . 1 . 1 . 1 . . Terminal Hacks 15 | . . . 1 2 . 1 . 1 1 2 3 2 1 1 . Robot Analysis 2 | . . . . . . . . . . . 2 . . . . Open Door 2 | . . . . 1 . . . . . 1 . . . . . Emergency Access Points 2 | . . . . . . 1 . . . . . 1 . . . Locate Traps 1 | . . . . . . . . . . . 1 . . . . Registered Components 1 | . . . . . . . . . . . . . 1 . . Registered Prototypes 1 | . . . . . . . . . 1 . . . . . . Zone Layout 1 | . . . . 1 . . . . . . . . . . . Garrison Registry 4 | . . . . . . . . 1 . 1 . 1 . 1 . Proto ID Catalog 1 | . . . 1 . . . . . . . . . . . . Fabricator Hacks 1 | . . . . . . . . . . . 1 . . . . Network Status 1 | . . . . . . . . . . . 1 . . . . Repair Station Hacks 11 | . 2 . . . 2 . . . . . . . 7 . . Scan Component 6 | . 1 . . . 1 . . . . . . . 4 . . Repair 5 | . 1 . . . 1 . . . . . . . 3 . . Recycling Unit Hacks . | . . . . . . . . . . . . . . . . Scanalyzer 5 | . . . . . 1 . . . . . . . 4 . . Insert Component 2 | . . . . . . . . . . . . . 2 . . Analyze 1 | . . . . . . . . . . . . . 1 . . Retrieve Study 2 | . . . . . 1 . . . . . . . 1 . . Garrison Access Hacks 5 | . . . . . 1 . 1 . 1 . 1 . 1 . . Unlock Access 5 | . . . . . 1 . 1 . 1 . 1 . 1 . . Unauthorized Hacks . | . . . . . . . . . . . . . . . . Terminals . | . . . . . . . . . . . . . . . . Fabricators . | . . . . . . . . . . . . . . . . Repair Stations . | . . . . . . . . . . . . . . . . Recycling Units . | . . . . . . . . . . . . . . . . Scanalyzers . | . . . . . . . . . . . . . . . . Garrison Access . | . . . . . . . . . . . . . . . . Data Cores Recovered 2 | . . . . . . . . . . . . . 2 . . Used . | . . . . . . . . . . . . . . . . Hacking Detections 29 | . 3 . . 1 3 1 1 1 1 3 4 2 7 . 2 Full Trace Events 3 | . 1 . . . 1 . . . . 1 . . . . . Feedback Events 1 | . . . . . . . . . . 1 . . . . . Corruption 1 | . . . . . . . . . . 1 . . . . . Feedback Blocked . | . . . . . . . . . . . . . . . . Robot Schematics Acquired . | . . . . . . . . . . . . . . . . Robots Built . | . . . . . . . . . . . . . . . . Authchips . | . . . . . . . . . . . . . . . . Time . | . . . . . . . . . . . . . . . . Total Robot Build Rating . | . . . . . . . . . . . . . . . . Part Schematics Acquired 1 | . . . . . . . . . . . . . 1 . . Parts Built . | . . . . . . . . . . . . . . . . Authchips . | . . . . . . . . . . . . . . . . Time . | . . . . . . . . . . . . . . . . Total Part Build Rating . | . . . . . . . . . . . . . . . . Part Studies Acquired 2 | . . . . . 1 . . . . . . . 1 . . Parts Repaired 5 | . 1 . . . 1 . . . . . . . 3 . . Time 268 | . 32 . . . 44 . . . . . . . 192 . . Parts Recycled . | . . . . . . . . . . . . . . . . Recycled Matter . | . . . . . . . . . . . . . . . . Retrieved Matter . | . . . . . . . . . . . . . . . . Retrieved Components . | . . . . . . . . . . . . . . . . Parts Scanalyzed 1 | . . . . . . . . . . . . . 1 . . Part Schematics Acquired 1 | . . . . . . . . . . . . . 1 . . Parts Damaged . | . . . . . . . . . . . . . . . . Bothacking | -11 -10 -10 -10 -9 -8 -8 -8 -8 -7 -7 -6 -6 -5 -5 -4 ------------ Run | Yrd Mat Min Exi Min Mat Gar Mat Gar Fac Gar Fac Gar Fac Gar Fac Used RIF Installer 7 | . . . . . . 2 . 1 . 1 . 2 . 1 . Code Merge 1 | . . . . . . . . . . . . 1 . . . Command Fork 1 | . . . . . . . . . . . . . . 1 . Watcher Feeds 1 | . . . . . . . . 1 . . . . . . . Alert ID Control 1 | . . . . . . . . . . 1 . . . . . Structural Interface 1 | . . . . . . 1 . . . . . . . . . Autooverride 1 | . . . . . . . . . . . . 1 . . . Robots Hacked 39 | . . . . . . . . 8 . 5 2 8 8 5 3 Non-combat 4 | . . . . . . . . . . . 2 . 1 . 1 Combat 35 | . . . . . . . . 8 . 5 . 8 7 5 2 Autooverrided 3 | . . . . . . . . . . . . . 1 1 1 Robot Hacks Applied 42 | . . . . . . . . 9 . 5 5 8 8 4 3 parse_system 2 | . . . . . . . . . . . 1 . 1 . . no_distress 2 | . . . . . . . . . . . 1 . 1 . . find_chute 1 | . . . . . . . . . . . 1 . . . . find_dsf 2 | . . . . . . . . . . . 2 . . . . purge_threat 1 | . . . . . . . . . . . . . . . 1 reboot_system 2 | . . . . . . . . . . . . 1 1 . . streamctrl_high 5 | . . . . . . . . 4 . 1 . . . . . formatsys_high 27 | . . . . . . . . 5 . 4 . 7 5 4 2 Relay Couplers Released 79 | . . . . . . 13 . 16 . 15 . 17 2 16 . Machine Destruction 76 | . . . . . . 13 . 13 . 15 . 17 2 16 . Programmers 3 | . . . . . . . . 3 . . . . . . . Attached 35 | . . . . . . . . 9 . 5 . 5 5 7 4 Merged Code Value 62 | . . . . . . . . . . . . . . 50 12 Fabnet Peak Effective % . | . . . . . . . . . . . . . . . . Robots Rewired 23 | . . . . . . . . . . 3 . 3 . 17 . Allies Hacked 2 | . . . . . . . . . . 1 . . . 1 . Hacks Repelled . | . . . . . . . . . . . . . . . . Allies | -11 -10 -10 -10 -9 -8 -8 -8 -8 -7 -7 -6 -6 -5 -5 -4 -------- Run | Yrd Mat Min Exi Min Mat Gar Mat Gar Fac Gar Fac Gar Fac Gar Fac Total Allies 65 | . . . . 5 . . . 8 . 8 . 12 6 22 4 Largest Group 10 | . . . . 5 5 3 . 5 . 4 . 6 2 10 3 Highest-Rated Group 322 | . . . . 82 82 55 . 82 . 127 . 309 183 322 112 Highest-Rated Ally 142 | . . . . 31 31 31 . 29 . 39 . 95 142 49 56 Total Orders 8 | . . . . . . . . . . 3 . 1 . 3 1 STAY 6 | . . . . . . . . . . 2 . 1 . 2 1 FOLLOW 2 | . . . . . . . . . . 1 . . . 1 . Ally Attacks 343 | . . . . 7 31 19 . 25 . 54 . 79 50 73 5 Total Damage 8360 | . . . . 83 380 226 . 369 . 1069 . 2285 1555 2226 167 Kills 62 | . . . . 1 2 2 . 3 . 11 . 23 8 12 . Allies Corrupted 4 | . . . . . . . . . . . . 1 . 2 1 Allies Melted 1 | . . . . . . . . . . 1 . . . . . Intel | -11 -10 -10 -10 -9 -8 -8 -8 -8 -7 -7 -6 -6 -5 -5 -4 ------- Run | Yrd Mat Min Exi Min Mat Gar Mat Gar Fac Gar Fac Gar Fac Gar Fac Active Infowar (turns) 5434 | . . 100 115 28 . . . . 81 1542 702 1617 1249 . . Optics 5191 | . . . . . . . . . 81 1542 702 1617 1249 . . Sensors 243 | . . 100 115 28 . . . . . . . . . . . Robot Analysis Total 2 | . . . . . . . . . . . 2 . . . . Derelict Logs Recovered 3 | . . 2 . 1 . . . . . . . . . . . Drone Launches . | . . . . . . . . . . . . . . . . Drone Recoveries . | . . . . . . . . . . . . . . . . Exploration | -11 -10 -10 -10 -9 -8 -8 -8 -8 -7 -7 -6 -6 -5 -5 -4 ------------- Run | Yrd Mat Min Exi Min Mat Gar Mat Gar Fac Gar Fac Gar Fac Gar Fac Turns Passed 14076 | 60 477 387 157 974 490 674 512 737 402 1542 702 1617 1773 2540 1032 Spaces Moved 12710 | 46 227 243 209 567 457 891 633 1108 476 2049 1083 1529 1225 1297 670 Core 123 | 5 . . . . . . . . . . . . . . 118 Treads 557 | . . . . 557 . . . . . . . . . . . Legs 4242 | 41 227 205 . . . . . . . . . 695 1225 1297 552 Wheels . | . . . . . . . . . . . . . . . . Hover 5883 | . . . . . 214 891 517 . 295 2049 1083 834 . . . Flight 1905 | . . 38 209 10 243 . 116 1108 181 . . . . . . Fastest Speed 29 | 50 120 37 37 37 45 45 32 29 29 38 48 48 90 100 50 Average Speed 73 | 112 121 107 73 158 48 45 42 31 34 43 51 82 104 119 111 Slowest Speed 750 | 120 190 120 117 160 240 48 56 114 46 66 120 183 270 190 750 Overloaded Moves . | . . . . . . . . . . . . . . . . Propulsion Burnouts . | . . . . . . . . . . . . . . . . Robots Hopped 4 | . . . . . . . 3 . 1 . . . . . . Potential Cave-ins . | . . . . . . . . . . . . . . . . Cave-ins Triggered . | . . . . . . . . . . . . . . . . Exploration Rate (%) 50 | 3 38 37 60 95 40 78 33 68 13 96 18 94 29 84 19 Regions Visited 15 Branch Regions 3 Pre-discovered Areas . | . . . . . . . . . . . . . . . . Known Exits Taken 8 | . . 1 1 1 1 . 1 . 1 . 1 . 1 . . Unknown Exits Taken 2 | 1 1 . . . . . . . . . . . . . . Scrap Searched 2 | . . 1 . 1 . . . . . . . . . . . Spaces Dug 48 | . . . . . . 1 12 . 5 . . . 2 4 24 Terrain Destroyed 175 | . . . . . 7 1 12 . 5 6 4 11 36 7 86 Melee 47 | . . . . . . 1 12 . 5 . . . 2 3 24 Projectile 39 | . . . . . . . . . . 6 4 11 6 4 8 AOE 89 | . . . . . 7 . . . . . . . 28 . 54 Terrain Rammed . | . . . . . . . . . . . . . . . . Walls Destroyed . | . . . . . . . . . . . . . . . . Machines Disabled . | . . . . . . . . . . . . . . . . Actions | -11 -10 -10 -10 -9 -8 -8 -8 -8 -7 -7 -6 -6 -5 -5 -4 --------- Run | Yrd Mat Min Exi Min Mat Gar Mat Gar Fac Gar Fac Gar Fac Gar Fac Total 16609 | 51 340 353 214 628 638 1053 841 1406 697 2618 1209 1835 1655 2185 886 Wait 2393 | . 42 79 . 40 97 54 186 109 190 363 79 141 282 587 144 Move 12688 | 45 226 242 208 566 457 889 626 1106 473 2048 1083 1528 1225 1296 670 Hop 4 | . . . . . . . 3 . 1 . . . . . . Pick Up 133 | . 10 4 1 1 16 9 2 13 1 7 5 21 20 21 2 Fast Attach 115 | 6 3 1 . 4 9 3 1 10 14 11 6 12 12 19 4 Attach 99 | . 1 2 1 . 4 4 2 12 1 10 4 12 23 13 10 Detach 63 | . 1 2 . . 2 . 1 9 1 13 1 8 12 10 3 Swap 66 | . 6 6 . 1 2 6 2 2 1 6 4 5 10 12 3 Drop 148 | . 5 10 4 6 11 9 2 11 8 16 11 16 19 18 2 Fire 291 | . 46 7 . 7 39 14 . 20 . 19 15 38 42 27 17 Melee 242 | . . . . . 1 41 16 54 7 37 . . 9 46 31 Ram . | . . . . . . . . . . . . . . . . Kick . | . . . . . . . . . . . . . . . . Crush 3 | . . . . 3 . . . . . . . . . . . Escape Stasis 114 | . . . . . . 24 . 60 . 17 . 13 . . . Rewire 250 | . . . . . . . . . . 71 1 41 1 136 . Trap . | . . . . . . . . . . . . . . . . Miscellaneous . | . . . . . . . . . . . . . . . . Route ------- -11/Scrapyard -10/Materials -10/Mines -10/Exiles -9/Mines (discovered 2 exits: *Mat x2) -8/Materials -8/Garrison (discovered 3 exits: *Mat x3) -8/Materials (discovered 2 exits: *Fac / Gar) -8/Garrison (discovered 3 exits: *Fac x3) -7/Factory (discovered 2 exits: *Fac / Gar) -7/Garrison (discovered 3 exits: *Fac x3) -6/Factory (discovered 3 exits: *Fac x2 / Gar) -6/Garrison (discovered 4 exits: *Fac x3 / [*Fac]) -5/Factory (discovered 3 exits: *Fac / [*Upp] / Gar) -5/Garrison (discovered 3 exits: *Fac x3) -4/Factory (discovered 1 exit: [*Upp]) History --------- Turn | Location | Event 11 | -11/Scrapyard | Discovered new exit (range 15) 61 | -11/Scrapyard | Entered Materials 205 | -10/Materials | Repaired Med. Armor Plating 312 | -10/Materials | Build established: Mutant 519 | -10/Materials | Discovered new exit (range 14) 538 | -10/Materials | Entered Mines 595 | -10/Mines | A weapon hastily lodged in a ceiling crevice suddenly fell to the ground 636 | -10/Mines | Assembled infested the area 705 | -10/Mines | Learned Materials stockpile data 905 | -10/Mines | Learned Materials stockpile data 923 | -10/Mines | Deemed a non-threat by the Exiles lab entrance 924 | -10/Mines | Discovered new exit (range 5) 925 | -10/Mines | Identified exit to Exiles 925 | -10/Mines | Entered Exiles 935 | -10/Exiles | Met 8R-AWN 941 | -10/Exiles | Met EX-HEX 951 | -10/Exiles | Met EX-BIN 956 | -10/Exiles | Aligned with FarCom system 956 | -10/Exiles | Given EX-Vault access code 965 | -10/Exiles | Opened EX-Vault 971 | -10/Exiles | Found Flying Fortress v7 993 | -10/Exiles | Warned to stay clear of 0b10 Research branches 1025 | -10/Exiles | Met EX-DEC 1068 | -10/Exiles | Discovered new exit (range 10) 1078 | -10/Exiles | Identified exit to Mines 1082 | -10/Exiles | Left Exiles lab with Flying Fortress v7 1082 | -10/Exiles | Entered Mines 1084 | -9/Mines | Met a Derelict shopkeep closing up shop 1148 | -9/Mines | Discovered new exit (range 14) 1169 | -9/Mines | Identified exit to Materials 1785 | -9/Mines | Assisted by bots powering up and referring to "LRC-V3" 1972 | -9/Mines | Joined a pair of Derelicts in attacking an 0b10 outpost 2056 | -9/Mines | Entered Materials 2056 | -8/Materials | Accompanied by 5 allies 2056 | -8/Materials | Evolved 4 slots: Propulsion x2, Utility x2 2062 | -8/Materials | Led the pair of lost Derelicts to an unsafe place 2422 | -8/Materials | Repaired Gatling Laser 2516 | -8/Materials | Identified exit to Garrison 2546 | -8/Materials | Entered Garrison 2546 | -8/Garrison | Accompanied by 3 allies 2558 | -8/Garrison | Installed Relay Interface Framework 2598 | -8/Garrison | Triggered checkpoint 2630 | -8/Garrison | Triggered checkpoint 2694 | -8/Garrison | Garrison Relay disabled 2746 | -8/Garrison | Triggered checkpoint 2841 | -8/Garrison | Lost 3 parts (1p1n1w) 2884 | -8/Garrison | Triggered checkpoint 2903 | -8/Garrison | Expanded RIF knowledge: Structural Interface 2937 | -8/Garrison | Discovered new exit (range 5) 2951 | -8/Garrison | Garrison Relay disabled 3024 | -8/Garrison | Discovered new exit (range 14) 3064 | -8/Garrison | Triggered checkpoint 3098 | -8/Garrison | Garrison Relay disabled 3171 | -8/Garrison | Discovered new exit (range 14) 3220 | -8/Garrison | Entered Materials 3535 | -8/Materials | Discovered new exit (range 10) 3717 | -8/Materials | Lost 4 parts (1p3n) 3731 | -8/Materials | Identified exit to Garrison 3732 | -8/Materials | Entered Garrison 3802 | -8/Garrison | Core integrity fell below 50% 3822 | -8/Garrison | Discovered new exit (range 62) 3822 | -8/Garrison | Discovered new exit (range 39) 3822 | -8/Garrison | Discovered new exit (range 85) 3900 | -8/Garrison | Triggered checkpoint 4030 | -8/Garrison | Triggered checkpoint 4058 | -8/Garrison | Triggered checkpoint 4086 | -8/Garrison | Triggered checkpoint 4106 | -8/Garrison | Triggered checkpoint 4109 | -8/Garrison | Garrison Relay disabled 4119 | -8/Garrison | Lost 4 allies 4154 | -8/Garrison | Expanded RIF knowledge: Watcher Feeds 4345 | -8/Garrison | Core integrity fell below 20% 4405 | -8/Garrison | Garrison Relay disabled 4411 | -8/Garrison | Garrison Relay disabled 4469 | -8/Garrison | Entered Factory 4469 | -7/Factory | Evolved 2 slots: Utility x2 4509 | -7/Factory | Discovered new exit (range 31) 4867 | -7/Factory | Identified exit to Garrison 4871 | -7/Factory | Entered Garrison 4922 | -7/Garrison | Expanded RIF knowledge: Alert ID Control 5073 | -7/Garrison | Build established: Bothacker-Gladiator 5147 | -7/Garrison | Garrison Relay disabled 5216 | -7/Garrison | Triggered checkpoint 5216 | -7/Garrison | Triggered checkpoint 5452 | -7/Garrison | Discovered new exit (range 13) 5463 | -7/Garrison | Garrison Relay disabled 5481 | -7/Garrison | Triggered checkpoint 5531 | -7/Garrison | Triggered checkpoint 5613 | -7/Garrison | Discovered new exit (range 16) 5621 | -7/Garrison | Triggered checkpoint 5633 | -7/Garrison | Garrison Relay disabled 5651 | -7/Garrison | Triggered checkpoint 5733 | -7/Garrison | Triggered checkpoint 5904 | -7/Garrison | Discovered new exit (range 16) 5904 | -7/Garrison | Discovered new exit (range 32) 5904 | -7/Garrison | Discovered new exit (range 72) 6178 | -7/Garrison | Garrison Relay disabled 6388 | -7/Garrison | Build established: Bothacker-Mutant 6413 | -7/Garrison | Entered Factory 6413 | -6/Factory | Evolved 2 slots: Utility x2 6773 | -6/Factory | Discovered new exit (range 13) 6799 | -6/Factory | Identified exit to Factory 7031 | -6/Factory | Discovered exit to Factory (range 8) 7115 | -6/Factory | Identified exit to Garrison 7115 | -6/Factory | Entered Garrison 7187 | -6/Garrison | Triggered checkpoint 7187 | -6/Garrison | Triggered checkpoint 7243 | -6/Garrison | Garrison Relay disabled 7285 | -6/Garrison | Discovered exit to Factory (range 2) 7305 | -6/Garrison | Found embedded Infiltrators 7339 | -6/Garrison | Triggered checkpoint 7362 | -6/Garrison | Garrison Relay disabled 7391 | -6/Garrison | Triggered checkpoint 7434 | -6/Garrison | Discovered new exit (range 6) 7527 | -6/Garrison | Triggered checkpoint 7560 | -6/Garrison | Triggered checkpoint 7595 | -6/Garrison | Lost 4 allies 7794 | -6/Garrison | Expanded RIF knowledge: Code Merge 8006 | -6/Garrison | Discovered exit to Factory (range 15) 8036 | -6/Garrison | Garrison Relay disabled 8085 | -6/Garrison | Triggered checkpoint 8119 | -6/Garrison | Expanded RIF knowledge: Autooverride 8340 | -6/Garrison | Build established: Botlord-Mutant 8471 | -6/Garrison | Triggered checkpoint 8480 | -6/Garrison | Garrison Relay disabled 8496 | -6/Garrison | Discovered exit to Factory (range 50) 8496 | -6/Garrison | Discovered exit to Factory (range 7) 8496 | -6/Garrison | Discovered exit to Factory (range 53) 8496 | -6/Garrison | Discovered new exit (range 33) 8645 | -6/Garrison | Triggered checkpoint 8732 | -6/Garrison | Entered Factory 8732 | -5/Factory | Evolved 2 slots: Power x1, Utility x1 8931 | -5/Factory | Repaired Broken Adv. VSS Leg 8976 | -5/Factory | Repaired Remote Datajack 9301 | -5/Factory | Central database locked down 9666 | -5/Factory | Repaired Adv. VSS Leg 9824 | -5/Factory | Garrison activated, responded to threat 10130 | -5/Factory | Discovered new exit (range 5) 10232 | -5/Factory | First assault squad dispatched 10409 | -5/Factory | Build established: Botlord-Gladiator 10426 | -5/Factory | Discovered new exit (range 3) 10505 | -5/Factory | Identified exit to Garrison 10505 | -5/Factory | Entered Garrison 10530 | -5/Garrison | Discovered new exit (range 60) 10530 | -5/Garrison | Discovered new exit (range 79) 10530 | -5/Garrison | Discovered new exit (range 43) 10582 | -5/Garrison | Triggered checkpoint 10636 | -5/Garrison | Garrison Relay disabled 10748 | -5/Garrison | Triggered checkpoint 10749 | -5/Garrison | Triggered checkpoint 10876 | -5/Garrison | Build established: Botlord-Mutant 10965 | -5/Garrison | Lost 7 parts (2p2n3u) 11205 | -5/Garrison | Triggered checkpoint 11332 | -5/Garrison | Core integrity fell below 50% 11357 | -5/Garrison | Triggered checkpoint 11408 | -5/Garrison | Lost 4 parts (1p2n1w) 11897 | -5/Garrison | Triggered checkpoint 11903 | -5/Garrison | Triggered checkpoint 11943 | -5/Garrison | Garrison Relay disabled 11987 | -5/Garrison | Lost 4 allies 12068 | -5/Garrison | Expanded RIF knowledge: Command Fork 12347 | -5/Garrison | P-70 Sage assimilated allied Warrior 6d 12404 | -5/Garrison | Lost 4 allies 12707 | -5/Garrison | Triggered checkpoint 12739 | -5/Garrison | Garrison Relay disabled 12749 | -5/Garrison | Lost 5 allies 13045 | -5/Garrison | Entered Factory 13045 | -4/Factory | Accompanied by 3 allies 13045 | -4/Factory | Evolved 2 slots: Utility x2 13049 | -4/Factory | Discovered new exit (range 7) 13295 | -4/Factory | First assault squad dispatched 13894 | -4/Factory | P-70 Sage assimilated allied Administrator 7a 13977 | -4/Factory | Core integrity fell below 50% 13977 | -4/Factory | System corruption reached 10% 14051 | -4/Factory | Core integrity fell below 20% 14062 | -4/Factory | Lost 21 parts (3p5n7u6w) 14077 | -4/Factory | Destroyed by G-67 Veteran with Field Laser Last Messages --------------- 14029_ System corrupted: Energy discharge (-20). 14029_ Slug penetrates Wall. 14031_ Penetrated by Slug. 14031_ Slug penetrates Door. 14031_ Imp. Target Analyzer destroyed. 14033_ K-01 Serf collects debris. 14040_ Penetrated by Slug. 14045_ System corrupted: Component data lost. 14050_ Penetrated by Slug. 14050_ Terminal disabled. 14050_ Penetrated by Slug. 14052_ Acquired 25 matter. 14053_ Penetrated by Slug. 14053_ Slug penetrates H-77 Assassin. 14057_ Penetrated by Slug. 14057_ Slug penetrates Wall. 14058_ Penetrated by Slug. 14058_ Slug penetrates Wall. 14058_ Slug penetrates Door. 14071_ System corrupted: Matter fused (-7). Map ----- +----------------------------------------------------+ | ??????????????????????????####################???? | | ??????????????????????????# """ """ """ """ #???? | | ??????????????????????????# """ """ """ """ #???? | | ??????????????????????????# """ """ """ """ #???? | | ??????????????????????????# #???? | | ??????????????????????????# [ #???? | | ??????????????????????????#! #???? | | ??????????????????????????# #???? | | ??????????????????????????# ##??? | | ??????????????????????????##+#######"##########??? | | ???????????##############??# #???# ########### | | ???????????# #### ##### # | | ??????###### + # [ | | ??????# # #######+## # """" | | ??????# # # + # """"" | | ###???# # # """ # # """""" | | # ##### + # """"" # # """""" | | ## # *# """"" # # | | ## " # +?hh ! # # """""" | | """ ## "T # #? """ # + """""" | | ## "" # # """"" + # """""" | | ## # # ?""""[ # # """""" | | == #####/# #?? ! # # | | == #???#g##+#########+########## t #####"##### | | = #???#g g k | | #???# g @ | | +??? | | #????### | | #??????# | | ######??????## T#######+############+########### | | T?????##????????????????????????????????# | | ??????????????????????????????????????# | | """ ""????????????????????????????????????????# | | ""????????????????????????????????????????????# | | "????????BB???????????????????????????????????# | | ???????BB???????????????????????????????????# | | ! ??????????????????????????????????????????# | | ??????????????????????????????????????????# | | ??????????????????????????????????????????# | | ??????????????????????????????????????????# | | """ "??????????????????????????????????????????# | | """????????????????????????????????????????????# | | ""?????????????????????????????????????????????# | | ??? ????????????????????????????????########## | | "?? """ ??????????????????????????????# # | | """ """ ??????????????????????????????# # | | """ """???????????????????????????????# # | | ????????????????????????????????# # | | ?????????????????????????????????# " | | #??????????????????????????????????# # | +----------------------------------------------------+ Best States ------------- Heat Dissipation 71 Energy Generation 37 Energy Capacity 555 Matter Stores 300 Matter Capacity 300 Sight Range 20 Robot Scan Range 14 Terrain Scan Density 10 Armor Coverage 450 Melee Speed Boost 20 Phase Shifting 5 Evasion (%) 64 Melee Accuracy 40 Target Analysis 9 Core Analysis 9 Recoil Reduction 1 Defensive Hacking 24 Relay Coupler Types 5 Relay Coupler Value 233 Item Schematics ----------------- Hvy. Linear Accelerator | -5/Factory | Scanalyzed Robot Schematics ------------------ None Fabricated ------------ Nothing Repaired ---------- Med. Armor Plating | 17% | -10/Materials Gatling Laser | 38% | -8/Materials Adv. VSS Leg | 73% | -5/Factory | Broken Remote Datajack | 18% | -5/Factory Adv. VSS Leg | 10% | -5/Factory Studied --------- Hvy. Hammer | -8/Materials | Hacked Imp. Deuterium Engine | -5/Factory | Hacked Alien Tech Used ----------------- None Achievements -------------- None Challenges ------------ None Game ------ Seed AuthchipMasterHarness Manual? 0 Play Time 02:23:27 Cumulative 106.4 hours Start 2026.09.11 @ 21:29:02 End 2026.09.12 @ 17:15:23 Sessions 4 Manual Loads 0 Difficulty Rogue Special Mode None Game No. 118 Rogue 118 Adventurer 0 Explorer 0 Win Type - Total 0 Types 0/0/0/0/0/0/0/0/0/0 Lore% 44 Gallery% 50 Achievement% 41 Wizard Run 0 Options --------- Layout 1 ASCII 0 Keyboard 0 Movement Mouse Keybinds 0 Fullscreen 2 Font 24/Smallcaps Map View 50x35 Zoom Use 0% Tactical HUD 1 Map Filters NONE Filters NONE Steam 1 RUN: 78635216-aa3b-4364-a9a6-664c7b2df651